fUST/lending_fUST_20260427
["ID","MTS","AMOUNT","RATE_DAILY","PERIOD"]
[421202274,1777241440880,-500.0,0.00019178,2]
[421202275,1777241440893,-578.16,0.00019178,2]
[421202276,1777241440903,-500.0,0.00019178,2]
[421202277,1777241440913,-500.0,0.00019178,2]
[421202279,1777241440923,-500.0,0.00019178,2]
[421202281,1777241440933,-500.0,0.00019178,2]
[421202283,1777241440943,-500.0,0.00019178,2]
[421202284,1777241440954,-500.0,0.00019178,2]
[421202285,1777241440964,-4015.03,0.00019178,2]
[421202286,1777241440974,-500.0,0.00019178,2]
[421202287,1777241440985,-500.0,0.00019178,2]
[421202288,1777241440995,-555.54,0.00019178,2]
[421202289,1777241441004,-614.03099665,0.00019178,2]
[421202290,1777241441014,-930.0,0.00019178,2]
[421202291,1777241441024,-1730.51,0.00019178,2]
[421202292,1777241441033,-1791.21,0.00019178,2]
[421202293,1777241441044,-692.29,0.00019178,2]
[421202294,1777241441054,-1373.44,0.00019178,2]
[421202295,1777241441064,-181.12949639,0.00019178,2]
[421202296,1777241441074,-500.0,0.00019178,2]
[421202297,1777241441085,-500.0,0.00019178,2]
[421202298,1777241441095,-3402.54,0.00019178,2]
[421202299,1777241441105,-500.0,0.00019178,2]
[421202300,1777241441115,-1523.16,0.00019178,2]
[421202301,1777241441125,-853.91,0.00019178,2]
[421202302,1777241441135,-500.0,0.00019178,2]
[421202303,1777241441145,-4732.65,0.00019178,2]
[421202304,1777241441164,-500.0,0.00019178,2]
[421202305,1777241441174,-500.0,0.00019178,2]
[421202306,1777241441184,-500.0,0.00019178,2]
[421202307,1777241441194,-500.0,0.00019178,2]
[421202308,1777241441204,-7106.04,0.00019178,2]
[421202309,1777241441214,-500.0,0.00019178,2]
[421202310,1777241441224,-8728.67,0.00019178,2]
[421202311,1777241441233,-1690.81,0.00019178,2]
[421202312,1777241441244,-500.0,0.00019178,2]
[421202313,1777241441253,-2078.07,0.00019178,2]
[421202314,1777241441263,-1890.68,0.00019178,2]
[421202315,1777241441273,-912.97,0.00019178,2]
[421202316,1777241441283,-10945.32,0.00019178,2]
[421202317,1777241441293,-2695.24,0.00019178,2]
[421202318,1777241441302,-559.0,0.00019178,2]
[421202319,1777241441312,-500.0,0.00019178,2]
[421202320,1777241441322,-523.89,0.00019178,2]
[421202321,1777241441332,-3238.92,0.00019178,2]
[421202322,1777241441344,-500.0,0.00019178,2]
[421202323,1777241441354,-500.0,0.00019178,2]
[421202324,1777241441365,-817.49,0.00019178,2]
[421202325,1777241441376,-500.0,0.00019178,2]
[421202326,1777241441387,-500.0,0.00019178,2]
[421202327,1777241441398,-500.0,0.00019178,2]
[421202328,1777241441409,-500.0,0.00019178,2]
[421202329,1777241441419,-500.0,0.00019178,2]
[421202330,1777241441430,-2935.53,0.00019178,2]
[421202331,1777241441442,-500.0,0.00019178,2]
[421202332,1777241441453,-180.81314259,0.00019178,2]
[421202333,1777241441463,-568.69,0.00019178,2]
[421202334,1777241441473,-902.32,0.00019178,2]
[421202335,1777241441483,-500.0,0.00019178,2]
[421202336,1777241441493,-1000.0,0.00019178,2]
[421202337,1777241441503,-500.0,0.00019178,2]
[421202338,1777241441513,-8300.76,0.00019178,2]
[421202339,1777241441523,-500.0,0.00019178,2]
[421202340,1777241441533,-500.0,0.00019178,2]
[421202341,1777241441543,-500.0,0.00019178,2]
[421202342,1777241441553,-500.0,0.00019178,2]
[421202343,1777241441563,-2433.34,0.00019178,2]
[421202344,1777241441573,-743.39,0.00019178,2]
[421202345,1777241441583,-403.34422564,0.00019178,2]
[421202346,1777241441593,-779.58,0.00019178,2]
[421202347,1777241441604,-6975.7,0.00019178,2]
[421202348,1777241441615,-2079.69,0.00019178,2]
[421202349,1777241441626,-500.0,0.00019178,2]
[421202350,1777241441637,-218.67254364,0.00019178,2]
[421202351,1777241441649,-2568.54,0.00019178,2]
[421202352,1777241441660,-440.44557243,0.00019178,2]
[421202353,1777241441670,-1100.28,0.00019178,2]
[421202354,1777241441680,-5678.89,0.00019178,2]
[421202355,1777241441690,-6354.57,0.00019178,2]
[421202356,1777241441701,-500.0,0.00019178,2]
[421202357,1777241441711,-518.72444431,0.00019178,2]
[421202358,1777241441721,-500.0,0.00019178,2]
[421202359,1777241441731,-500.0,0.00019178,2]
[421202360,1777241441741,-3636.7,0.00019178,2]
[421202361,1777241441751,-500.0,0.00019178,2]
[421202362,1777241441761,-159.27703169,0.00019178,2]
[421202363,1777241441771,-1152.23,0.00019178,2]
[421202364,1777241441781,-500.0,0.00019178,2]
[421202365,1777241441793,-500.0,0.00019178,2]
[421202366,1777241441805,-1992.85,0.00019178,2]
[421202367,1777241441815,-7457.55,0.00019178,2]
[421202368,1777241441827,-500.0,0.00019178,2]
[421202369,1777241441837,-620.12,0.00019178,2]
[421202370,1777241441847,-643.93,0.00019178,2]
[421202371,1777241441857,-14373.66634847,0.00019178,2]
[421202372,1777241441901,-35.02365153,0.00019178,2]
[421202373,1777241441911,-2355.18,0.00019178,2]
[421202374,1777241441921,-1219.9,0.00019178,2]
[421202375,1777241441931,-500.0,0.00019178,2]
[421202376,1777241441941,-500.0,0.00019178,2]
[421202377,1777241441952,-500.0,0.00019178,2]
[421202378,1777241441962,-500.0,0.00019178,2]
[421202379,1777241441973,-541.19695692,0.00019178,2]
[421202380,1777241441983,-4027.18,0.00019178,2]
[421202381,1777241441993,-500.0,0.00019178,2]
[421202382,1777241442003,-1201.64,0.00019178,2]
[421202383,1777241442013,-500.0,0.00019178,2]
[421202384,1777241442023,-7272.27,0.00019178,2]
[421202385,1777241442033,-1431.45,0.00019178,2]
[421202386,1777241442044,-3045.68,0.00019178,2]
[421202387,1777241442055,-667.75,0.00019178,2]
[421202388,1777241442066,-500.0,0.00019178,2]
[421202389,1777241442078,-500.0,0.00019178,2]
[421202390,1777241442089,-6008.74,0.00019178,2]
[421202391,1777241442099,-500.0,0.00019178,2]
[421202392,1777241442108,-500.0,0.00019178,2]
[421202393,1777241442119,-39189.57796718,0.00019178,2]
[421202438,1777241446549,-1725.44496826,0.00018976,2]
[421202439,1777241446764,-3274.55503174,0.00018976,2]
[421202440,1777241446774,-547.07767402,0.00019168,2]
[421202441,1777241446783,-6129.03203282,0.00019178,2]
[421202442,1777241446793,-500.0,0.00019178,2]
[421202443,1777241446803,-500.0,0.00019178,2]
[421202444,1777241446812,-1098.14,0.00019178,2]
[421202445,1777241446822,-1053.26,0.00019178,2]
[421202446,1777241446832,-500.0,0.00019178,2]
[421202447,1777241446843,-470.88254806,0.00019178,2]
[421202448,1777241446853,-16322.97,0.00019178,2]
[421202449,1777241446862,-500.0,0.00019178,2]
[421202450,1777241446871,-809.56,0.00019178,2]
[421202451,1777241446881,-1561.82,0.00019178,2]
[421202452,1777241446890,-500.0,0.00019178,2]
[421202453,1777241446900,-500.0,0.00019178,2]
[421202454,1777241446909,-500.0,0.00019178,2]
[421202455,1777241446919,-11205.31,0.00019178,2]
[421202456,1777241446928,-500.0,0.00019178,2]
[421202457,1777241446938,-229.5746204,0.00019178,2]
[421202458,1777241446947,-500.0,0.00019178,2]
[421202459,1777241446957,-6126.2,0.00019178,2]
[421202460,1777241446966,-500.0,0.00019178,2]
[421202461,1777241446976,-2371.39,0.00019178,2]
[421202462,1777241446986,-500.0,0.00019178,2]
[421202463,1777241446995,-16346.01,0.00019178,2]
[421202464,1777241447005,-1724.74,0.00019178,2]
[421202465,1777241447016,-500.0,0.00019178,2]
[421202466,1777241447027,-2391.97,0.00019178,2]
[421202467,1777241447036,-3514.38,0.00019178,2]
[421202468,1777241447046,-500.0,0.00019178,2]
[421202469,1777241447055,-500.0,0.00019178,2]
[421202470,1777241447064,-534.3387154,0.00019178,2]
[421202471,1777241447073,-3785.03,0.00019178,2]
[421202472,1777241447083,-1175.21,0.00019178,2]
[421202473,1777241447094,-517.29464663,0.00019178,2]
[421202474,1777241447103,-1653.9,0.00019178,2]
[421202475,1777241447113,-500.0,0.00019178,2]
[421202476,1777241447122,-16723.26,0.00019178,2]
[421202477,1777241447132,-543.59,0.00019178,2]
[421202478,1777241447141,-2395.1,0.00019178,2]
[421202479,1777241447151,-424.95106018,0.00019178,2]
[421202480,1777241447160,-16619.17,0.00019178,2]
[421202481,1777241447174,-2518.48,0.00019178,2]
[421202482,1777241447183,-500.0,0.00019178,2]
[421202483,1777241447192,-500.0,0.00019178,2]
[421202484,1777241447201,-500.0,0.00019178,2]
[421202485,1777241447211,-2605.74,0.00019178,2]
[421202486,1777241447220,-329.73641522,0.00019178,2]
[421202487,1777241447229,-1126.66,0.00019178,2]
[421202488,1777241447239,-357.92471246,0.00019178,2]
[421202489,1777241447248,-500.0,0.00019178,2]
[421202490,1777241447258,-500.0,0.00019178,2]
[421202491,1777241447269,-500.0,0.00019178,2]
[421202492,1777241447279,-500.0,0.00019178,2]
[421202493,1777241447288,-500.0,0.00019178,2]
[421202494,1777241447298,-500.0,0.00019178,2]
[421202495,1777241447309,-507.99,0.00019178,2]
[421202496,1777241447319,-2209.51,0.00019178,2]
[421202497,1777241447329,-918.6,0.00019178,2]
[421202498,1777241447339,-151.0,0.000192,2]
[421202499,1777241447349,-151.0,0.000192,2]
[421202500,1777241447359,-151.0,0.000192,2]
[421202501,1777241447368,-151.0,0.000192,2]
[421202502,1777241447377,-151.0,0.000193,2]
[421202503,1777241447387,-151.0,0.000193,2]
[421202504,1777241447397,-151.0,0.000193,2]
[421202505,1777241447408,-151.0,0.000193,2]
[421202506,1777241447418,-151.0,0.000193,2]
[421202507,1777241447428,-151.0,0.000193,2]
[421202508,1777241447438,-151.0,0.000193,2]
[421202509,1777241447449,-151.0,0.000193,2]
[421202510,1777241447459,-151.0,0.000193,2]
[421202511,1777241447469,-151.0,0.000193,2]
[421202512,1777241447479,-547.07767402,0.00019335,2]
[421202513,1777241447488,-231.0,0.00019361,2]
[421202514,1777241447497,-547.43919594,0.000194,2]
[421202515,1777241447506,-1302.2002154,0.000194,2]
[421202516,1777241447516,-797.52919891,0.000194,2]
[421202517,1777241447525,-2093.67696323,0.000194,2]
[421202518,1777241447534,-1146.65251908,0.000194,2]
[421202519,1777241447543,-591.9675609,0.000194,2]
[421202520,1777241447553,-1426.95012122,0.000194,2]
[421202521,1777241447564,-537.06264268,0.000194,2]
[421202522,1777241447575,-621.02969453,0.000194,2]
[421202523,1777241447585,-1508.148145,0.000194,2]
[421202524,1777241447596,-455.09,0.000194,2]
[421202525,1777241447605,-2109.95910469,0.000194,2]
[421202526,1777241447615,-151.0,0.000194,2]
[421202527,1777241447624,-151.0,0.000194,2]
[421202528,1777241447634,-151.0,0.000194,2]
[421202529,1777241447643,-151.0,0.000194,2]
[421202530,1777241447653,-151.0,0.000194,2]
[421202531,1777241447663,-151.0,0.000194,2]
[421202532,1777241447673,-151.0,0.000194,2]
[421202533,1777241447683,-7106.33976751,0.000194,2]
[421202534,1777241447693,-151.0,0.000194,2]
[421202535,1777241447703,-151.0,0.000194,2]
[421202536,1777241447712,-151.0,0.000194,2]
[421202537,1777241447722,-2061.311,0.00019452,2]
[421202538,1777241447732,-17749.259501,0.00019452,2]
[421202539,1777241447741,-493.0504,0.00019452,2]
[421202540,1777241447751,-500.0,0.00019452,2]
[421202541,1777241447761,-1398.32,0.00019452,2]
[421202542,1777241447770,-1328.93,0.00019452,2]
[421202543,1777241447779,-500.0,0.00019452,2]
[421202544,1777241447789,-1256.03,0.00019452,2]
[421202545,1777241447798,-1021.72,0.00019452,2]
[421202546,1777241447807,-500.0,0.00019452,2]
[421202547,1777241447816,-500.0,0.00019452,2]
[421202548,1777241447826,-1575.77,0.00019452,2]
[421202549,1777241447836,-2778.67,0.00019452,2]
[421202550,1777241447846,-500.0,0.00019452,2]
[421202551,1777241447856,-500.0,0.00019452,2]
[421202552,1777241447866,-500.0,0.00019452,2]
[421202553,1777241447875,-500.0,0.00019452,2]
[421202554,1777241447885,-563.67803322,0.00019452,2]
[421202555,1777241447895,-599.86,0.00019452,2]
[421202556,1777241447904,-552.07643123,0.00019452,2]
[421202557,1777241447914,-500.0,0.00019452,2]
[421202558,1777241447924,-1580.93,0.00019452,2]
[421202559,1777241447934,-500.0,0.00019452,2]
[421202560,1777241447943,-500.0,0.00019452,2]
[421202561,1777241447953,-500.0,0.00019452,2]
[421202562,1777241447964,-500.0,0.00019452,2]
[421202563,1777241447973,-500.0,0.00019452,2]
[421202564,1777241447982,-516.58,0.00019452,2]
[421202565,1777241447990,-590.18,0.00019452,2]
[421202566,1777241448000,-347.79403118,0.00019452,2]
[421202567,1777241448011,-500.0,0.00019452,2]
[421202568,1777241448018,-500.0,0.00019452,2]
[421202569,1777241448027,-500.0,0.00019452,2]
[421202570,1777241448037,-500.0,0.00019452,2]
[421202571,1777241448046,-500.0,0.00019452,2]
[421202572,1777241448056,-500.0,0.00019452,2]
[421202573,1777241448066,-1105.87,0.00019452,2]
[421202574,1777241448075,-500.0,0.00019452,2]
[421202575,1777241448085,-2568.39,0.00019452,2]
[421202576,1777241448096,-1025.53,0.00019452,2]
[421202577,1777241448105,-500.0,0.00019452,2]
[421202578,1777241448115,-333.11335968,0.00019452,2]
[421202579,1777241448125,-500.0,0.00019452,2]
[421202580,1777241448135,-500.0,0.00019452,2]
[421202581,1777241448145,-500.0,0.00019452,2]
[421202582,1777241448154,-500.0,0.00019452,2]
[421202583,1777241448165,-500.0,0.00019452,2]
[421202584,1777241448174,-218.92893514,0.00019452,2]
[421202585,1777241448184,-1184.56,0.00019452,2]
[421202586,1777241448194,-500.0,0.00019452,2]
[421202587,1777241448204,-504.18886615,0.00019452,2]
[421202588,1777241448214,-2101.03,0.00019452,2]
[421202589,1777241448225,-663.72,0.00019452,2]
[421202590,1777241448235,-500.0,0.00019452,2]
[421202591,1777241448245,-2591.09,0.00019452,2]
[421202592,1777241448255,-1502.92,0.00019452,2]
[421202593,1777241448264,-500.0,0.00019452,2]
[421202594,1777241448274,-500.0,0.00019452,2]
[421202595,1777241448284,-500.0,0.00019452,2]
[421202596,1777241448293,-500.0,0.00019452,2]
[421202597,1777241448302,-500.0,0.00019452,2]
[421202598,1777241448312,-1064.06,0.00019452,2]
[421202599,1777241448322,-500.0,0.00019452,2]
[421202600,1777241448331,-500.0,0.00019452,2]
[421202601,1777241448342,-1595.73,0.00019452,2]
[421202602,1777241448351,-1553.25,0.00019452,2]
[421202603,1777241448360,-500.0,0.00019452,2]
[421202604,1777241448417,-228.7382613,0.00019452,2]
[421202605,1777241448426,-500.0,0.00019452,2]
[421202606,1777241448437,-500.0,0.00019452,2]
[421202607,1777241448447,-1111.3,0.00019452,2]
[421202608,1777241448457,-1475.12,0.00019452,2]
[421202609,1777241448467,-500.0,0.00019452,2]
[421202610,1777241448476,-556.43,0.00019452,2]
[421202611,1777241448486,-816.34,0.00019452,2]
[421202612,1777241448495,-500.0,0.00019452,2]
[421202613,1777241448504,-1617.47,0.00019452,2]
[421202614,1777241448514,-500.0,0.00019452,2]
[421202615,1777241448523,-500.0,0.00019452,2]
[421202616,1777241448532,-500.0,0.00019452,2]
[421202617,1777241448542,-500.0,0.00019452,2]
[421202618,1777241448551,-500.0,0.00019452,2]
[421202619,1777241448562,-576.57598459,0.00019452,2]
[421202620,1777241448571,-500.0,0.00019452,2]
[421202621,1777241448581,-500.0,0.00019452,2]
[421202622,1777241448591,-695.66,0.00019452,2]
[421202623,1777241448601,-500.0,0.00019452,2]
[421202624,1777241448611,-500.0,0.00019452,2]
[421202625,1777241448622,-500.0,0.00019452,2]
[421202626,1777241448632,-1062.61,0.00019452,2]
[421202627,1777241448643,-5831.64,0.00019452,2]
[421202628,1777241448653,-500.0,0.00019452,2]
[421202629,1777241448663,-500.0,0.00019452,2]
[421202630,1777241448672,-2306.6,0.00019452,2]
[421202631,1777241448682,-500.0,0.00019452,2]
[421202632,1777241448691,-500.0,0.00019452,2]
[421202633,1777241448701,-224.71828015,0.00019452,2]
[421202634,1777241448710,-685.46,0.00019452,2]
[421202635,1777241448720,-978.43,0.00019452,2]
[421202636,1777241448729,-500.0,0.00019452,2]
[421202637,1777241448738,-500.0,0.00019452,2]
[421202638,1777241448748,-500.0,0.00019452,2]
[421202639,1777241448758,-500.0,0.00019452,2]
[421202640,1777241448767,-500.0,0.00019452,2]
[421202641,1777241448781,-500.0,0.00019452,2]
[421202642,1777241448791,-500.0,0.00019452,2]
[421202643,1777241448800,-301.5683294,0.00019452,2]
[421202644,1777241448810,-500.0,0.00019452,2]
[421202645,1777241448820,-2162.09,0.00019452,2]
[421202646,1777241448830,-891.01,0.00019452,2]
[421202647,1777241448839,-500.0,0.00019452,2]
[421202648,1777241448849,-2001.85,0.00019452,2]
[421202649,1777241448859,-917.31,0.00019452,2]
[421202650,1777241448868,-679.79,0.00019452,2]
[421202651,1777241448878,-500.0,0.00019452,2]
[421202652,1777241448888,-500.0,0.00019452,2]
[421202653,1777241448898,-1210.01,0.00019452,2]
[421202654,1777241448907,-500.0,0.00019452,2]
[421202655,1777241448916,-604.78,0.00019452,2]
[421202656,1777241448926,-500.0,0.00019452,2]
[421202657,1777241448936,-1066.37,0.00019452,2]
[421202658,1777241448945,-500.0,0.00019452,2]
[421202659,1777241448955,-500.0,0.00019452,2]
[421202660,1777241448964,-500.0,0.00019452,2]
[421202661,1777241448974,-1607.50716385,0.00019452,2]
[421202662,1777241448992,-2476.39283615,0.00019452,2]
[421202663,1777241449002,-500.0,0.00019452,2]
[421202664,1777241449012,-500.0,0.00019452,2]
[421202665,1777241449022,-534.97,0.00019452,2]
[421202666,1777241449032,-628.34716385,0.00019452,2]
[421202671,1777241699537,555.0,0.00024657,120]
[421202672,1777241712989,888.0,0.00024657,120]
[421202673,1777241735639,866.0,0.00024657,120]
[421202674,1777241753001,888.0,0.00024657,120]
[421202675,1777241759610,666.0,0.00024657,120]
[421202680,1777242336134,-473.97108325,0.0001264,10]
[421202681,1777242563392,-162.25679185,0.00012704,2]
[421202704,1777242632513,-824.80597736,0.00012451,2]
[421202705,1777242632526,-4175.19402264,0.00012451,2]
[421202706,1777242632535,-317.8558344,0.00012577,2]
[421202707,1777242632572,-608.51552482,0.00012577,2]
[421202708,1777242632581,-150.0,0.00012768,2]
[421202709,1777242632591,-95.10847518,0.00013699,2]
[421202812,1777242639025,-904.89152482,0.00013699,2]
[421202813,1777242639035,-177.0,0.00014768,2]
[421202814,1777242639044,-204.0,0.00016768,2]
[421202815,1777242639053,-185.0,0.00018539,2]
[421202816,1777242639062,-231.0,0.00018768,2]
[421202817,1777242639071,-2083.2,0.00018878,2]
[421202818,1777242639081,-341.92354628,0.000189,2]
[421202819,1777242639090,-271.52837224,0.00018977,2]
[421202820,1777242639100,-637.75567233,0.00018978,2]
[421202821,1777242639122,-151.78982749,0.00018978,2]
[421202822,1777242639130,-846129.20593891,0.00018978,2]
[421202824,1777242639234,-2329.82177418,0.00018978,2]
[421202825,1777242639246,-1992.31416356,0.00018978,2]
[421202901,1777242643870,-4642.358051,0.00018978,2]
[421202993,1777242646924,-152.0,0.00017725,7]
[421202994,1777242646935,-10865.95300542,0.00018978,2]
[421202995,1777242646944,-635.86929933,0.00019,2]
[421203007,1777243627126,-1817.85721664,0.00012389,2]
[421203008,1777243627149,-5000.0,0.00012514,2]
[421203009,1777243627172,-150.0,0.00012704,2]
[421203010,1777243627193,-1000.0,0.00013699,2]
[421203011,1777243627215,-177.0,0.00014704,2]
[421203012,1777243627237,-204.0,0.00016704,2]
[421203013,1777243627259,-185.0,0.00018494,2]
[421203014,1777243627281,-231.0,0.00018704,2]
[421203015,1777243627303,-155.37116779,0.00018778,2]
[421203016,1777243627326,-7496.77841997,0.00018778,2]
[421203024,1777243831901,-2793.9059349,0.00018491,2]
[421203025,1777243831910,-150.0,0.00018584,2]
[421203026,1777243831919,-267.78553673,0.00018677,2]
[421203027,1777243831928,-500.0,0.00018678,2]
[421203028,1777243831938,-299.18310303,0.00018678,2]
[421203029,1777243831946,-621.48467104,0.00018678,2]
[421203030,1777243831955,-3732.61610189,0.00018678,2]
[421203031,1777243831967,-826.3611333,0.00018678,2]
[421203032,1777243832007,-2334.10422389,0.00018678,2]
[421203134,1777243838595,-1824.08896054,0.00018678,2]
[421203135,1777243838624,-1136.54756164,0.00018678,2]
[421203136,1777243838636,-7076.90089951,0.00018678,2]
[421203137,1777243838647,-398807.91642256,0.00018678,2]
[421203138,1777243838663,-3625.14842586,0.00018678,2]
[421203139,1777243838673,-1075.68321582,0.00018778,2]
[421203140,1777243838684,-2003.46127258,0.00018778,2]
[421203141,1777243838696,-3919.63417329,0.00018778,2]
[421203142,1777243838708,-51638.61401638,0.00018778,2]
[421203143,1777243838718,-3046.881342,0.0001887,2]
[421203144,1777243838728,-500.0,0.00018877,2]
[421203145,1777243838738,-500.0,0.00018877,3]
[421203146,1777243838748,-192.381,0.00018878,2]
[421203147,1777243838758,-152.0,0.00018891,7]
[421203148,1777243838769,-299.18310297,0.00018892,2]
[421203149,1777243838780,-152.0,0.00018918,7]
[421203150,1777243838789,-252.13070067,0.00019,2]
[421203151,1777243838799,-2036.54,0.00019,10]
[421203152,1777243838808,-12518.76483955,0.00019,3]
[421203153,1777243838818,-340.97743922,0.00019,3]
[421203154,1777243838827,-866.0,0.00019077,2]
[421203155,1777243838837,-866.0,0.00019077,2]
[421203156,1777243838845,-888.0,0.00019077,2]
[421203157,1777243838854,-224.17699114,0.00019077,2]
[421203158,1777243838866,-423.61164771,0.00019077,2]
[421203172,1777243840836,-18.21136115,0.00019077,2]
[421203173,1777243840846,-222.0,0.00019077,2]
[421203174,1777243840858,-299.18310297,0.00019105,2]
[421203175,1777243840868,-252.44518487,0.00019178,2]
[421203176,1777243840878,-7081.56035101,0.00019178,2]
[421203177,1777243840934,-520.09031662,0.00019178,2]
[421203188,1777243844301,-403.29280148,0.00019,2]
[421203195,1777243846710,-596.70719852,0.00019,2]
[421203196,1777243846721,-10640.65923337,0.00019178,2]
[421203197,1777243846731,-807.026648,0.00019178,2]
[421203198,1777243846741,-1261.438334,0.00019178,2]
[421203199,1777243846751,-500.0,0.00019178,2]
[421203200,1777243846762,-500.0,0.00019178,2]
[421203201,1777243846771,-222.8160695,0.00019178,2]
[421203202,1777243846781,-500.0,0.00019178,2]
[421203203,1777243846791,-554.07,0.00019178,2]
[421203204,1777243846801,-500.0,0.00019178,2]
[421203205,1777243846811,-891.25,0.00019178,2]
[421203206,1777243846821,-500.0,0.00019178,2]
[421203207,1777243846830,-500.0,0.00019178,2]
[421203208,1777243846840,-500.0,0.00019178,2]
[421203209,1777243846850,-500.0,0.00019178,2]
[421203210,1777243846860,-818.33,0.00019178,2]
[421203211,1777243846870,-500.0,0.00019178,2]
[421203212,1777243846880,-500.0,0.00019178,2]
[421203213,1777243846890,-500.0,0.00019178,2]
[421203214,1777243846899,-500.0,0.00019178,2]
[421203215,1777243846909,-500.0,0.00019178,2]
[421203216,1777243846918,-2582.94,0.00019178,2]
[421203217,1777243846927,-500.0,0.00019178,2]
[421203218,1777243846938,-500.0,0.00019178,2]
[421203219,1777243846949,-500.0,0.00019178,2]
[421203220,1777243846959,-1000.0,0.00019178,2]
[421203221,1777243846969,-207.09285228,0.00019178,2]
[421203224,1777244500263,-767.49219064,0.00012897,2]
[421203225,1777244500295,-566.6092167,0.00012897,2]
[421203226,1777244529417,-151.81893727,0.00012897,2]
[421203227,1777244529444,-463.8543161,0.00012897,2]
[421203228,1777244558581,-151.81893727,0.00013027,2]
[421203229,1777244562497,276.3124704,0.00025261,120]
[421203232,1777244908053,206.97970794,0.0002527,120]
[421203233,1777244960141,-5000.0,0.00012768,10]
[421203234,1777244960167,-150.0,0.00013061,2]
[421203235,1777244960187,-156.0,0.00013699,2]
[421203236,1777244960207,-1000.0,0.00013699,2]
[421203237,1777244960228,-177.0,0.00015061,2]
[421203238,1777244960247,-785.0,0.000161,2]
[421203239,1777244960270,-32.1278,0.00017061,2]
[421203257,1777245032042,-152.0,0.00016091,7]
[421203259,1777245032051,-152.0,0.00016091,7]
[421203261,1777245032061,-150.0,0.00016491,2]
[421203263,1777245032070,-1573.62603099,0.00016891,10]
[421203265,1777245032079,-185.0,0.00018243,2]
[421203268,1777245032090,-152.0,0.00018367,7]
[421203269,1777245032100,-152.0,0.00018367,7]
[421203271,1777245032109,-152.0,0.00018387,7]
[421203273,1777245032119,-152.0,0.00018387,7]
[421203275,1777245032128,-177.0,0.00018491,2]
[421203277,1777245032138,-152.0,0.00018537,7]
[421203279,1777245032147,-152.0,0.00018537,7]
[421203281,1777245032157,-455.9061779,0.00018628,2]
[421203283,1777245032166,-456.9626887,0.00018633,2]
[421203285,1777245032176,-151.0,0.00018633,2]
[421203287,1777245032185,-151.0,0.00018633,2]
[421203289,1777245032195,-235.61206716,0.00018678,2]
[421203291,1777245032204,-336.83,0.00018713,2]
[421203293,1777245032213,-552.0,0.00018789,2]
[421203295,1777245032223,-369.7,0.0001879,2]
[421203297,1777245032232,-339.85,0.00018791,2]
[421203299,1777245032241,-346.0,0.00018821,2]
[421203301,1777245032251,-152.0,0.00018823,7]
[421203302,1777245032261,-152.0,0.00018823,7]
[421203304,1777245032270,-300.0,0.00018834,2]
[421203307,1777245032281,-380.41,0.00018835,2]
[421203308,1777245032291,-186.9894394,0.00018882,2]
[421203309,1777245032300,-472.41,0.00018971,2]
[421203310,1777245032310,-271.12880086,0.00018977,2]
[421203311,1777245032320,-500.0,0.00018977,2]
[421203312,1777245032329,-500.0,0.00018977,2]
[421203313,1777245032339,-500.0,0.00018977,2]